bitfinex-derivatives/quotes_ETHF0:USTF0_20241104
["timestamp","ask_amount","ask_price","bid_price","bid_amount"]
[1730681498546,0.447,2443.6,2443.0,4.9973]
[1730681498843,0.447,2443.6,2443.0,0.9045]
[1730681499350,0.40939,2443.5,2443.3,0.40941]
[1730681499852,0.447,2443.6,2443.0,0.9045]
[1730681500143,0.40939,2443.5,2443.3,0.40941]
[1730681500549,0.40939,2443.5,2443.0,0.9045]
[1730681500739,0.40939,2443.5,2443.3,0.40941]
[1730681501139,0.4094,2443.5,2443.3,0.40941]
[1730681501645,0.4094,2443.5,2443.0,0.9045]
[1730681501849,0.4094,2443.5,2443.4,0.4094]
[1730681502450,3.2078,2443.9,2443.2,3.2078]
[1730681502754,3.6322,2443.9,2443.2,4.23137]
[1730681502940,3.6322,2443.9,2443.5,3.2078]
[1730681502941,0.83372,2443.9,2443.5,3.2078]
[1730681503147,0.4244,2443.9,2443.8,0.40934]
[1730681503344,3.2078,2444.3,2443.7,1.02339]
[1730681503656,0.40922,2444.5,2444.4,0.40923]
[1730681503847,3.2078,2444.6,2444.3,0.40925]
[1730681504149,0.40922,2444.5,2444.3,0.40925]
[1730681504350,3.2078,2444.6,2444.2,0.436]
[1730681504548,3.2078,2444.6,2444.5,0.40922]
[1730681505055,0.4244,2444.9,2444.5,0.40922]
[1730681505056,3.2078,2445.4,2444.5,7.2982]
[1730681505244,0.40904,2445.6,2445.1,0.40911]
[1730681505445,0.40904,2445.6,2444.7,7.13993717]
[1730681505446,4.95473717,2445.6,2444.8,0.4431]
[1730681505645,4.23048,2445.4,2444.7,3.2078]
[1730681505846,4.23048,2445.4,2444.5,0.40921]
[1730681505847,0.40919,2444.7,2444.5,0.40921]
[1730681506058,0.40918,2444.8,2444.6,0.40919]
[1730681506242,0.8497,2445.3,2444.4,3.2078]
[1730681506753,0.8497,2445.3,2444.3,0.4431]
[1730681506754,0.40919,2444.7,2444.5,0.40921]
[1730681507248,4.78183717,2445.3,2444.3,0.4431]
[1730681507444,1.02285,2445.0,2444.3,0.85235]
[1730681507641,1.02285,2445.0,2443.8,1.02333]
[1730681507642,3.2078,2444.8,2443.8,3.2078]
[1730681507846,7.13993717,2444.8,2443.8,3.2078]
[1730681508046,1.02302,2444.6,2443.8,3.2078]
[1730681508246,0.40929,2444.1,2443.9,0.40931]
[1730681508759,0.4372,2444.5,2443.8,3.2078]
[1730681508760,0.4619,2444.4,2443.8,3.2078]
[1730681508959,1.48503,2444.4,2443.8,3.2078]
[1730681509150,0.40932,2444.0,2443.8,3.2078]
[1730681509553,0.40932,2444.0,2443.8,3.61713]
[1730681509847,0.40932,2443.9,2443.8,3.2078]
[1730681510351,0.40931,2444.0,2443.8,3.61713]
[1730681511646,0.40932,2443.9,2443.8,3.2078]
[1730681512561,0.40931,2444.0,2443.8,3.61713]
[1730681512958,0.40931,2444.0,2443.8,3.2078]
[1730681513159,0.40931,2444.0,2443.9,0.40932]
[1730681513459,0.40931,2444.0,2443.8,0.40933]
[1730681513657,0.4093,2444.1,2443.9,0.40932]
[1730681513966,0.40931,2444.0,2443.8,0.40933]
[1730681514359,0.40929,2444.1,2443.9,0.40932]
[1730681514764,0.40931,2444.0,2443.8,0.40932]
[1730681515561,0.40928,2444.2,2444.0,0.4093]
[1730681515858,0.40929,2444.1,2443.9,0.40931]
[1730681517053,0.4333,2444.4,2443.7,0.4567]
[1730681517265,1.45643,2444.4,2443.7,0.4567]
[1730681517564,1.45643,2444.4,2443.9,0.40931]
[1730681517565,0.4333,2444.4,2443.9,0.40931]
[1730681517765,0.4333,2444.4,2444.0,0.4093]
[1730681517973,0.40925,2444.3,2444.0,0.4093]
[1730681518174,0.40929,2444.1,2444.0,0.4093]
[1730681518776,0.40929,2444.1,2443.7,0.4567]
[1730681518979,0.40929,2444.1,2443.9,0.40931]
[1730681519267,0.4333,2444.4,2443.8,3.2078]
[1730681519474,0.40927,2444.3,2444.1,0.40928]
[1730681519664,0.4372,2444.5,2443.9,3.19416557]
[1730681519865,0.4619,2444.8,2444.2,3.19416557]
[1730681520065,0.4619,2444.8,2444.5,0.40921]
[1730681520272,0.4619,2444.8,2444.3,0.8998]
[1730681520477,7.42463557,2445.5,2444.4,6.40196557]
[1730681520772,1.02268,2445.4,2444.8,0.40916]
[1730681520964,1.02268,2445.4,2444.7,3.2078]
[1730681520965,0.40915,2444.9,2444.7,3.61698]
[1730681521374,1.02268,2445.4,2444.7,3.2078]
[1730681521576,8.02981765,2445.5,2444.7,3.2078]
[1730681521773,0.4091,2445.3,2445.1,0.40911]
[1730681521971,0.40911,2445.2,2445.0,0.40912]
[1730681522670,0.40911,2445.2,2445.0,0.40914]
[1730681522877,0.40914,2445.0,2444.9,0.4574]
[1730681523077,0.4091,2445.2,2445.0,0.40914]
[1730681523279,0.40908,2445.4,2445.2,0.40909]
[1730681523575,0.40908,2445.4,2445.0,3.2078]
[1730681523765,0.83916,2445.5,2445.3,0.40909]
[1730681523974,0.55538814,2445.9,2445.0,3.2078]
[1730681524272,0.40903,2445.7,2445.5,0.40905]
[1730681524473,0.40904,2445.6,2445.4,0.40906]
[1730681524773,0.40902,2445.7,2445.5,0.40904]
[1730681524975,3.669,2446.0,2445.5,0.40904]
[1730681525175,3.669,2446.0,2445.4,0.4574]
[1730681525365,0.40902,2445.7,2445.5,0.40904]
[1730681525570,1.0225,2445.9,2445.2,0.4091]
[1730681525781,0.40909,2445.3,2445.1,0.40911]
[1730681526473,0.40908,2445.4,2445.2,0.4091]
[1730681526671,1.02255,2445.7,2445.0,4.06932]
[1730681526879,0.40909,2445.3,2445.1,0.40911]
[1730681527281,0.40912,2445.1,2445.0,3.6602]
[1730681527472,0.40912,2445.1,2445.0,3.2078]
[1730681528169,1.8791,2445.6,2445.0,3.61693]
[1730681528370,0.85744,2445.6,2445.5,0.40905]
[1730681528571,0.40901,2445.8,2445.6,0.40902]
[1730681528774,0.409,2445.9,2445.7,0.40901]
[1730681529979,0.4484,2446.2,2445.3,3.2078]
[1730681530286,0.4484,2446.2,2446.1,0.40895]
[1730681530478,4.2299,2446.8,2445.9,3.2078]
[1730681530779,0.40892,2446.3,2446.1,0.40894]
[1730681531086,0.40895,2446.1,2445.9,3.2078]
[1730681531376,0.40895,2446.2,2445.9,3.61678]
[1730681531782,0.40895,2446.1,2445.9,3.61678]
[1730681531984,0.40895,2446.1,2445.9,3.2078]
[1730681532180,1.47946,2446.7,2445.9,3.2078]
[1730681532481,1.47946,2446.7,2446.5,0.40888]
[1730681532482,0.40887,2446.6,2446.5,0.40888]
[1730681532679,0.40887,2446.6,2446.5,0.40889]
[1730681532878,0.86616,2446.7,2446.2,7.13781765]
[1730681533079,0.40886,2446.7,2446.5,0.40887]
[1730681533273,1.12405221,2447.4,2446.6,3.2078]
[1730681533470,4.22961,2447.5,2446.6,3.6742]
[1730681533471,0.40884,2446.8,2446.6,3.6742]
[1730681533675,1.02191,2447.3,2446.6,0.4664]
[1730681533676,0.40885,2446.7,2446.6,0.4664]
[1730681535075,1.02191,2447.3,2446.7,0.40885]
[1730681535076,0.40884,2446.8,2446.7,0.40885]
[1730681535280,1.02191,2447.3,2446.6,4.5536]
[1730681535281,0.40885,2446.7,2446.6,0.87526]
[1730681535576,1.02193,2447.2,2446.4,0.4089]
[1730681535577,0.40888,2446.6,2446.4,0.4089]
[1730681535886,0.40889,2446.5,2446.1,0.4236]
[1730681536079,0.40889,2446.5,2446.3,0.4089]
[1730681536280,0.40889,2446.5,2446.4,0.4089]
[1730681536481,0.40889,2446.5,2446.1,0.4236]
[1730681536679,0.40889,2446.5,2446.3,0.40891]
[1730681536878,0.4671,2446.8,2446.1,0.83254]
[1730681536879,1.02214,2446.7,2446.1,0.83254]
[1730681537082,0.40891,2446.4,2446.1,0.4236]
[1730681537279,0.4671,2446.8,2446.2,0.40892]
[1730681537280,0.40892,2446.3,2446.2,0.40892]
[1730681537487,0.40892,2446.3,2446.1,0.4236]
[1730681537488,0.4089,2446.5,2446.3,0.40891]
[1730681537689,0.40887,2446.6,2446.2,3.93001765]
[1730681538084,0.40887,2446.6,2446.4,0.40889]
[1730681538384,0.40887,2446.6,2446.3,3.2078]
[1730681538587,0.4671,2446.8,2446.3,3.2078]
[1730681538588,0.4671,2446.8,2446.4,0.40889]
[1730681538779,0.4671,2446.8,2446.3,3.2078]
[1730681538984,0.4089,2446.4,2446.3,3.2078]
[1730681539186,0.40889,2446.5,2446.4,0.40889]
[1730681539391,0.40888,2446.6,2446.4,0.40889]
[1730681539585,0.40888,2446.6,2446.3,3.2078]
[1730681539787,0.4671,2446.8,2446.4,0.40889]
[1730681539986,0.40886,2446.7,2446.3,3.2078]
[1730681540194,4.0821,2447.1,2446.3,3.2078]
[1730681540389,0.40879,2447.1,2446.9,0.40881]
[1730681540593,0.4088,2447.0,2446.9,0.40881]
[1730681540892,0.427,2447.2,2446.9,0.40881]
[1730681540893,0.4088,2447.1,2446.9,0.40881]
[1730681541190,0.40884,2446.8,2446.7,0.4233]
[1730681541586,0.40886,2446.7,2446.6,0.40887]
[1730681541792,1.02197,2447.1,2446.6,0.40887]
[1730681541994,0.40884,2446.8,2446.6,0.40887]
[1730681542194,0.427,2447.2,2446.5,3.93001765]
[1730681542697,0.4088,2447.1,2446.9,0.40881]
[1730681542996,0.4088,2447.1,2447.0,0.4088]
[1730681543194,0.427,2447.2,2446.6,3.6587]
[1730681543394,0.40881,2447.0,2446.8,0.40882]
[1730681543603,0.40881,2447.0,2446.7,0.40885]
[1730681543897,0.40881,2447.0,2446.8,0.40882]
[1730681544198,1.02187,2447.4,2446.6,3.6587]
[1730681544386,1.02187,2447.4,2446.8,0.40883]
[1730681544387,0.40882,2446.9,2446.8,0.40883]
[1730681544589,1.02187,2447.4,2446.6,3.6587]
[1730681544799,0.40887,2446.6,2446.5,3.2078]
[1730681545099,0.40889,2446.5,2446.4,0.8322]
[1730681545295,0.40889,2446.5,2446.4,0.4233]
[1730681545600,0.40889,2446.5,2446.4,4.5105]
[1730681545796,0.40889,2446.5,2446.4,4.9194]
[1730681546098,0.40889,2446.5,2446.4,4.5105]
[1730681546286,0.40889,2446.5,2446.4,0.4233]
[1730681546895,0.466,2446.8,2446.2,3.2078]
[1730681546896,0.40892,2446.3,2446.2,3.2078]
[1730681547097,0.40889,2446.5,2446.3,0.40892]
[1730681547403,0.4089,2446.4,2446.3,0.40892]
[1730681547894,0.40888,2446.6,2446.4,0.4089]
[1730681548198,0.40888,2446.6,2446.5,0.40889]
[1730681548400,0.466,2446.8,2446.3,0.4647]
[1730681548601,0.4089,2446.4,2446.3,0.87362]
[1730681549105,0.4089,2446.4,2446.3,4.96162]
[1730681551003,0.4089,2446.4,2446.3,4.5527]
[1730681551201,1.48812,2446.8,2446.2,3.2078]
[1730681551390,0.40891,2446.4,2446.3,0.40891]
[1730681551592,1.48812,2446.8,2446.3,0.40892]
[1730681551593,0.40885,2446.8,2446.3,0.40892]
[1730681551903,0.8909,2446.9,2446.6,3.60018641]
[1730681552198,0.8909,2446.9,2446.4,0.4525]
[1730681552199,0.8909,2446.9,2446.4,4.05273641]
[1730681552502,0.40887,2446.6,2446.5,0.40888]
[1730681552695,0.8909,2446.9,2446.4,3.64383641]
[1730681552895,0.40888,2446.6,2446.5,0.40888]
[1730681553293,0.8909,2446.9,2446.4,6.85163641]
[1730681553501,0.40884,2446.8,2446.6,0.40885]
[1730681553696,0.40884,2446.8,2446.7,0.40885]
[1730681553892,0.40884,2446.8,2446.4,6.85163641]
[1730681554097,0.40878,2447.1,2446.7,3.2078]
[1730681554292,0.438,2447.2,2446.9,0.4088]
[1730681554500,0.4088,2447.0,2446.9,0.4088]
[1730681555604,0.43,2447.3,2446.6,7.42129641]
[1730681555805,0.40877,2447.2,2447.1,0.40878]
[1730681556207,0.43,2447.3,2447.2,0.40877]
[1730681556608,3.2078,2447.5,2447.4,0.40873]
[1730681556799,3.61652,2447.5,2447.4,0.40873]
[1730681557111,3.61653,2447.5,2447.4,0.40873]
[1730681557812,3.61653,2447.5,2447.3,0.40874]
[1730681557813,0.40874,2447.4,2447.3,0.40874]
[1730681558301,0.40874,2447.4,2447.0,0.45]
[1730681558302,3.2078,2447.5,2447.0,0.45]
[1730681558495,3.2078,2447.5,2447.1,0.40878]
[1730681558496,0.40877,2447.2,2447.1,0.40878]
[1730681558699,3.2078,2447.5,2447.0,0.45]
[1730681558895,0.40876,2447.3,2447.2,0.40876]
[1730681559106,0.40876,2447.3,2447.1,3.19133641]
[1730681559308,0.40876,2447.3,2447.2,0.40877]
[1730681559502,3.2078,2447.5,2447.1,3.19133641]
[1730681559709,3.2078,2447.5,2447.4,0.40873]
[1730681560006,0.4242,2447.8,2447.5,0.40872]
[1730681560007,4.04068,2447.8,2447.5,0.40872]
[1730681560207,0.40868,2447.7,2447.5,0.85301]
[1730681560509,4.04068,2447.8,2447.7,0.40868]
[1730681560998,0.4242,2447.8,2447.7,3.61648]
[1730681561197,4.22931,2448.3,2448.0,0.40863]
[1730681561198,0.40862,2448.1,2448.0,0.40863]
[1730681561409,0.40862,2448.1,2447.7,7.2934]
[1730681561410,0.40864,2448.0,2447.9,0.40865]
[1730681561707,0.8714,2448.2,2447.9,0.40864]
[1730681561908,0.40863,2448.1,2447.9,0.40864]
[1730681562200,0.8714,2448.2,2447.6,3.19133641]
[1730681562406,0.40868,2447.8,2447.7,0.40868]
[1730681562706,0.40868,2447.8,2447.6,3.60002641]
[1730681562895,0.40868,2447.7,2447.6,3.60002641]
[1730681563099,0.40868,2447.8,2447.6,3.60002641]
[1730681563296,0.40868,2447.8,2447.6,0.40869]
[1730681563501,1.89293,2448.2,2447.5,0.4443]
[1730681563502,1.02155,2448.1,2447.5,0.4443]
[1730681563700,0.4087,2447.7,2447.5,0.85301]
[1730681563907,0.4087,2447.6,2447.5,0.4443]
[1730681564112,0.4087,2447.6,2447.5,0.85302]
[1730681564404,3.2078,2448.0,2447.3,3.2078]
[1730681564599,3.2078,2448.0,2447.4,0.40873]
[1730681564600,0.40873,2447.5,2447.4,0.40873]
[1730681564800,0.40873,2447.5,2447.3,3.2078]
[1730681564801,0.40873,2447.4,2447.3,3.61655]
[1730681564999,0.40873,2447.4,2447.3,3.2078]
[1730681568609,0.4575,2447.6,2447.1,0.40878]
[1730681569009,0.4575,2447.6,2447.1,3.61658]
[1730681569208,0.40877,2447.2,2447.1,3.61658]
[1730681569512,0.4575,2447.6,2447.1,3.2078]
[1730681569806,0.40877,2447.2,2447.1,3.61657]
[1730681570212,0.40876,2447.3,2447.1,3.61657]
[1730681570609,0.40877,2447.2,2447.1,3.61657]
[1730681570816,0.40877,2447.2,2447.1,3.2078]
[1730681571114,0.4088,2447.0,2446.9,3.2078]
[1730681571512,0.4203,2447.1,2446.9,3.2078]
[1730681571812,0.8291,2447.1,2447.0,0.4088]
[1730681572013,0.8291,2447.1,2446.9,3.6166]
[1730681572212,0.8291,2447.1,2447.0,0.4088]
[1730681572710,0.8291,2447.1,2446.9,3.61661]
[1730681572711,0.4088,2447.0,2446.9,3.61661]
[1730681573422,0.4203,2447.1,2446.9,3.2078]
[1730681573606,0.4088,2447.0,2446.9,3.2078]
[1730681573811,0.8291,2447.1,2447.0,0.4088]
[1730681574311,0.4088,2447.0,2446.9,3.2078]
[1730681574910,0.8691,2447.0,2446.9,3.2078]
[1730681575912,0.8691,2447.0,2446.9,3.61662]
[1730681576617,0.4203,2447.1,2447.0,0.4088]
[1730681576618,0.8291,2447.1,2447.0,0.4088]
[1730681577221,0.4088,2447.0,2446.9,3.2078]
[1730681577412,0.4088,2447.0,2446.9,3.61662]
[1730681579017,0.4088,2447.0,2446.9,3.2078]
[1730681579508,0.4088,2447.0,2446.9,3.61662]
[1730681580216,0.4088,2447.0,2446.9,3.2078]
[1730681580513,0.4088,2447.0,2446.9,3.61662]
[1730681581105,0.82909,2447.1,2447.0,0.4088]
[1730681581315,0.40877,2447.2,2447.1,0.40877]
[1730681581508,0.40878,2447.1,2447.0,0.82969]
[1730681585623,0.40878,2447.1,2447.0,0.4209]
[1730681586111,0.40878,2447.1,2447.0,0.8297]
[1730681589018,0.4377,2447.3,2447.0,0.4209]
[1730681589223,0.4224,2447.4,2447.0,0.4209]
[1730681589224,0.83114,2447.4,2447.3,0.40875]
[1730681589621,0.4224,2447.4,2447.1,3.19014528]
[1730681589816,0.40877,2447.3,2447.2,0.40876]
[1730681590420,0.40877,2447.2,2447.1,0.40877]
[1730681591129,0.40878,2447.1,2447.0,0.82969]
[1730681591519,0.40878,2447.2,2447.1,0.40877]
[1730681592023,0.4224,2447.4,2447.1,3.19014528]
[1730681592325,0.83115,2447.4,2447.3,0.40875]
[1730681592626,0.40877,2447.2,2447.1,3.59892528]
[1730681592923,0.40877,2447.2,2447.1,0.40878]
[1730681593226,0.40876,2447.3,2447.2,0.40876]
[1730681594819,0.40878,2447.2,2447.1,0.40877]
[1730681595417,0.4224,2447.4,2447.0,0.4209]
[1730681595623,0.40878,2447.1,2447.0,0.4209]
[1730681595931,0.40878,2447.1,2447.0,0.8297]
[1730681596127,0.40882,2446.9,2446.8,0.4592]
[1730681596319,0.40882,2446.9,2446.8,0.86802]
[1730681596521,0.40882,2446.9,2446.8,0.40882]
[1730681596721,0.40884,2446.8,2446.7,3.6684]
[1730681598424,0.40884,2446.8,2446.7,4.07725]
[1730681600423,0.40884,2446.8,2446.7,3.6684]
[1730681601218,0.40884,2446.8,2446.7,4.07725]
[1730681601425,0.85944,2446.9,2446.8,0.40884]
[1730681601621,0.85944,2446.9,2446.7,4.07724]
[1730681601622,0.40884,2446.8,2446.7,4.07724]
[1730681601824,0.40884,2446.8,2446.7,3.6684]
[1730681602229,0.40884,2446.8,2446.7,3.2078]
[1730681602820,0.40887,2446.6,2446.5,0.4334]
[1730681603027,0.40887,2446.6,2446.5,3.2078]
[1730681603633,0.40887,2446.6,2446.5,3.61669]
[1730681604230,3.10449608,2446.9,2446.5,3.2078]
[1730681604432,0.40887,2446.6,2446.5,3.61667]
[1730681604935,0.40892,2446.3,2446.2,0.4478]
[1730681605136,0.40894,2446.2,2446.1,0.4632]
[1730681605331,0.40898,2446.0,2445.9,0.40898]
[1730681606244,3.09809608,2446.2,2445.7,0.4632]
[1730681606539,0.40898,2446.0,2445.9,0.40899]
[1730681606930,0.40896,2446.1,2446.0,0.40896]
[1730681607331,3.09809608,2446.2,2445.7,0.4632]
[1730681607633,0.40898,2446.0,2445.8,0.40899]
[1730681607940,0.40899,2445.9,2445.8,0.409]
[1730681608439,0.409,2445.8,2445.7,0.4632]
[1730681608932,0.40904,2445.6,2445.4,0.40906]
[1730681609140,0.84233,2445.7,2445.3,0.894]
[1730681609329,0.84233,2445.7,2445.5,0.40905]
[1730681609529,2.65389608,2446.1,2445.3,0.894]
[1730681609733,0.4333,2446.0,2445.6,3.19014528]
[1730681610041,0.40899,2445.9,2445.7,0.409]
[1730681610531,0.40899,2445.9,2445.8,0.4644]
[1730681610740,0.4333,2446.0,2445.9,0.40899]
[1730681611035,0.8543,2446.3,2445.8,3.6722]
[1730681611337,0.40897,2446.1,2445.9,0.40898]
[1730681611742,1.2876,2446.3,2446.0,0.40896]
[1730681611944,0.40894,2446.2,2446.0,0.40896]
[1730681612240,1.2876,2446.3,2445.8,3.6722]
[1730681612539,0.40894,2446.2,2446.0,0.40896]
[1730681612729,0.40896,2446.1,2445.9,0.84408]
[1730681613128,0.40894,2446.2,2446.0,0.40896]
[1730681613639,0.40895,2446.1,2446.0,0.40896]
[1730681613835,0.40895,2446.2,2446.0,0.40896]
[1730681614236,1.2876,2446.3,2445.9,0.4351]
[1730681614933,0.40894,2446.2,2446.1,0.40895]
[1730681615741,0.40894,2446.2,2446.0,0.40896]
[1730681619034,0.40894,2446.2,2445.9,0.4351]
[1730681619235,1.69653,2446.3,2446.2,0.40894]
[1730681619432,2.65389608,2446.9,2446.1,6.39794528]
[1730681619636,6.39247529,2447.3,2446.9,0.40881]
[1730681619637,0.4088,2447.1,2446.9,0.40881]
[1730681619837,0.4661,2447.2,2446.8,0.4543]
[1730681620134,6.38849866,2447.6,2447.4,0.40872]
[1730681620135,0.83481,2447.6,2447.4,0.40872]
[1730681620332,0.40871,2447.6,2447.2,3.19014528]
[1730681620531,0.9107,2447.8,2447.4,0.40872]
[1730681620742,0.4661,2447.8,2447.3,3.6318]
[1730681620938,0.40871,2447.6,2447.4,0.40872]
[1730681621139,0.40871,2447.6,2447.5,0.40872]
[1730681621736,0.40871,2447.6,2447.3,3.6318]
[1730681621937,0.40871,2447.6,2447.5,0.40872]
[1730681622142,0.40869,2447.7,2447.5,0.40872]
[1730681623243,0.4661,2447.8,2447.5,0.40872]
[1730681623447,0.4087,2447.6,2447.5,0.40872]
[1730681624341,0.4087,2447.7,2447.5,0.40872]
[1730681624536,0.4087,2447.6,2447.5,0.40872]
[1730681624741,0.4087,2447.7,2447.5,0.40872]
[1730681624942,0.4087,2447.6,2447.5,0.40872]
[1730681625142,0.4661,2447.8,2447.5,0.40872]
[1730681625341,0.4661,2447.8,2447.3,3.6318]
[1730681625646,0.40869,2447.7,2447.5,0.40871]
[1730681625956,0.40869,2447.7,2447.3,3.6318]
[1730681626250,0.40869,2447.7,2447.5,0.4087]
[1730681628046,0.40869,2447.7,2447.6,0.4087]
[1730681628449,0.40869,2447.7,2447.5,0.40871]
[1730681629154,0.4087,2447.6,2447.3,3.6318]
[1730681629351,0.40873,2447.5,2447.3,3.6318]
[1730681629542,0.40873,2447.5,2447.3,3.61654]
[1730681629740,0.40873,2447.5,2447.3,0.40874]
[1730681629945,0.40872,2447.5,2447.3,0.40874]
[1730681630345,0.40873,2447.4,2447.3,0.40874]
[1730681630545,3.2078,2447.6,2447.3,0.40874]
[1730681630847,0.40873,2447.5,2447.3,0.40874]
[1730681631546,0.40873,2447.5,2447.0,3.6283]
[1730681631745,0.40873,2447.5,2447.4,0.40873]
[1730681631948,3.2078,2447.6,2447.3,0.40874]
[1730681632147,0.40873,2447.4,2447.3,0.40874]
[1730681632448,0.40872,2447.5,2447.4,0.40873]
[1730681632650,0.40872,2447.5,2447.0,3.6283]
[1730681632843,0.40872,2447.5,2447.3,0.40874]
[1730681633244,0.40873,2447.4,2447.3,0.40874]
[1730681633444,3.2078,2447.6,2447.3,0.40874]
[1730681633645,3.2078,2447.6,2447.0,3.6283]
[1730681633646,0.40873,2447.5,2447.0,3.6283]
[1730681633846,0.40873,2447.5,2447.4,0.40873]
[1730681634053,0.40873,2447.5,2447.0,3.6283]
[1730681634249,0.40873,2447.5,2447.4,0.40873]
[1730681634645,0.40873,2447.5,2447.0,0.4205]
[1730681634646,0.40874,2447.4,2447.3,0.40874]
[1730681634843,3.2078,2447.6,2447.0,3.2078]
[1730681635047,0.40877,2447.2,2447.1,0.40878]
[1730681636255,0.85166,2447.3,2447.1,0.40878]
[1730681636754,0.40877,2447.2,2447.1,0.40878]
[1730681638557,0.4429,2447.3,2447.2,0.40877]
[1730681638752,0.85165,2447.3,2447.2,0.40877]
[1730681639447,0.4429,2447.3,2447.2,0.40877]
[1730681639654,0.85165,2447.3,2447.2,0.40877]
[1730681639859,0.4429,2447.3,2447.2,0.40877]
[1730681640047,3.2078,2447.9,2447.2,8.29845528]
[1730681640247,3.2078,2447.9,2447.3,0.8978]
[1730681640445,0.40869,2447.7,2447.6,0.4087]
[1730681640847,3.2078,2447.9,2447.5,0.40871]
[1730681641047,3.2078,2447.9,2447.4,0.40872]
[1730681641256,3.2078,2447.9,2447.3,0.8978]
[1730681641552,0.4087,2447.7,2447.5,0.4087]
[1730681641855,0.4087,2447.7,2447.6,0.4087]
[1730681642452,0.4087,2447.6,2447.5,0.40871]
[1730681643262,3.2078,2447.9,2447.5,0.40871]
[1730681643477,0.4087,2447.6,2447.5,0.40871]
[1730681643851,3.2078,2447.9,2447.6,0.4087]
[1730681643852,0.40869,2447.7,2447.6,0.4087]
[1730681644256,3.2078,2447.9,2447.3,0.8978]
[1730681644462,3.2078,2447.9,2447.6,0.40869]
[1730681644657,0.40868,2447.8,2447.7,0.40868]
[1730681645660,0.40867,2447.8,2447.7,0.40868]
[1730681646057,0.40869,2447.7,2447.6,0.4087]
[1730681646260,3.2078,2447.9,2447.3,0.8978]
[1730681646466,0.4087,2447.7,2447.6,0.4087]
[1730681647364,3.2078,2447.9,2447.6,0.4087]
[1730681647566,0.40868,2447.7,2447.6,0.4087]
[1730681648463,4.0856,2447.7,2447.3,0.8978]
[1730681648768,4.0856,2447.7,2447.1,3.2078]
[1730681648769,0.40875,2447.3,2447.2,0.40876]
[1730681649766,0.9024,2447.5,2447.0,0.4586]
[1730681650264,0.40874,2447.4,2447.3,0.40874]
[1730681650979,0.40876,2447.3,2447.2,0.40876]
[1730681651267,0.40874,2447.4,2447.3,0.40873]
[1730681651461,0.4481,2447.5,2447.4,0.40873]
[1730681651462,0.85683,2447.5,2447.4,0.40873]
[1730681652173,0.40874,2447.4,2447.3,0.40874]
[1730681652359,0.40874,2447.4,2447.1,3.2078]
[1730681652360,0.4481,2447.5,2447.1,3.2078]
[1730681652558,0.4481,2447.5,2447.0,0.4586]
[1730681652767,0.40877,2447.2,2447.1,0.40878]
[1730681658772,0.40878,2447.1,2447.0,0.86739]
[1730681658969,0.40877,2447.2,2447.1,0.40877]
[1730681661471,0.40878,2447.1,2447.0,0.40879]
[1730681661669,0.40882,2447.0,2446.9,0.40881]
[1730681661869,0.4556,2447.0,2446.9,0.40881]
[1730681662381,0.8644,2447.0,2446.9,0.40881]
[1730681662580,0.4556,2447.0,2446.9,0.40881]
[1730681662780,0.40878,2447.2,2447.1,0.40878]
[1730681663278,0.40879,2447.1,2447.0,0.40879]
[1730681667282,3.10996129,2447.3,2446.8,3.2078]
[1730681667478,0.40878,2447.2,2447.1,0.40877]
[1730681668582,3.10996129,2447.3,2446.8,3.2078]
[1730681668788,0.40881,2447.0,2446.9,0.40881]
[1730681670584,3.08746129,2447.2,2446.6,0.4614]
[1730681670585,3.09436129,2447.1,2446.6,0.4614]
[1730681670789,3.09436129,2447.1,2446.8,0.40881]
[1730681670790,0.40883,2446.9,2446.8,0.40881]
[1730681670999,0.40885,2446.7,2446.6,0.87026]
[1730681671486,0.40885,2446.7,2446.6,0.87027]
[1730681671682,0.40885,2446.7,2446.5,3.2078]
[1730681671683,0.40888,2446.6,2446.3,0.4576]
[1730681671883,3.11746129,2446.8,2446.4,0.40889]
[1730681671884,0.4089,2446.5,2446.4,0.40889]
[1730681672196,0.4089,2446.4,2446.3,0.4576]
[1730681672485,0.4089,2446.4,2446.2,3.6312]
[1730681672486,0.40892,2446.3,2446.2,3.2078]
[1730681672687,0.85782,2446.3,2446.2,3.2078]
[1730681673089,4.94582,2446.3,2446.2,3.2078]
[1730681673589,4.94582,2446.3,2446.2,0.56024977]
[1730681673782,0.40897,2446.0,2445.9,3.2078]
[1730681674292,4.49697,2446.0,2445.9,3.2078]
[1730681674490,7.2958,2446.0,2445.4,2.48789251]
[1730681674688,0.40904,2445.6,2445.4,2.89695251]
[1730681675387,3.2078,2445.7,2445.3,0.4531]
[1730681675781,3.2078,2445.7,2445.4,0.40907]
[1730681675782,0.40904,2445.6,2445.4,0.40907]
[1730681676492,3.2078,2445.7,2445.3,0.4531]
[1730681676694,3.61683,2445.7,2445.5,0.40904]
[1730681676887,0.40901,2445.8,2445.6,0.40904]
[1730681677382,0.40901,2445.8,2445.6,0.40903]
[1730681677982,0.40901,2445.8,2445.3,0.4531]
[1730681678183,0.409,2445.9,2445.7,0.40901]
[1730681678383,3.2078,2446.0,2445.3,3.6609]
[1730681678694,0.40899,2445.9,2445.6,0.40902]
[1730681679090,0.409,2445.8,2445.6,0.40902]
[1730681679489,3.2078,2446.1,2445.3,4.66593528]
[1730681679792,3.2078,2446.1,2445.4,1.02264]
[1730681680587,0.40897,2446.0,2445.8,0.40899]
[1730681681694,3.2078,2446.1,2445.3,4.66593528]